bitfinex-derivatives/quotes_BTCF0:USTF0_20250329
["timestamp","ask_amount","ask_price","bid_price","bid_amount"]
[1743278060832,0.00068,82396.0,82395.0,0.16723829]
[1743278061343,0.00068,82396.0,82395.0,0.52803829]
[1743278061542,0.0332,82406.0,82400.0,0.1214053]
[1743278061731,0.21901706,82401.0,82400.0,0.1214053]
[1743278061933,0.21901706,82401.0,82400.0,0.1222053]
[1743278062743,0.0008,82401.0,82400.0,0.1222053]
[1743278062933,0.0332,82406.0,82403.0,0.1214009]
[1743278063134,0.0332,82406.0,82403.0,0.1221609]
[1743278063135,0.00134215,82404.0,82403.0,0.1221609]
[1743278063335,0.00134215,82404.0,82403.0,0.4829609]
[1743278063837,0.00134215,82404.0,82403.0,0.5157609]
[1743278065033,0.00134215,82404.0,82403.0,0.1549609]
[1743278065233,0.00934215,82404.0,82403.0,0.5157609]
[1743278067045,0.04104215,82404.0,82403.0,0.1549609]
[1743278067348,0.04104215,82404.0,82403.0,0.5157609]
[1743278067551,0.04104215,82404.0,82403.0,0.1549609]
[1743278067746,0.04104215,82404.0,82403.0,0.5157609]
[1743278068337,0.16244155,82404.0,82403.0,0.5157609]
[1743278069143,0.04104215,82404.0,82403.0,0.5157609]
[1743278069343,0.04028215,82404.0,82403.0,0.5157609]
[1743278069853,0.04096215,82404.0,82403.0,0.5157609]
[1743278071351,0.033,82413.0,82412.0,0.1213876]
[1743278071653,0.1217768,82420.0,82419.0,0.1213773]
[1743278071849,0.1217768,82420.0,82419.0,0.1220573]
[1743278072154,0.13470888,82420.0,82419.0,0.1220573]
[1743278072847,0.16530888,82420.0,82419.0,0.1539573]
[1743278073045,0.17030888,82420.0,82419.0,0.1539573]
[1743278073246,0.17630888,82420.0,82419.0,0.1539573]
[1743278075548,0.17630888,82420.0,82419.0,0.00068]
[1743278075749,0.53710888,82420.0,82419.0,0.00068]
[1743278075954,0.53710888,82420.0,82418.0,0.0327]
[1743278075955,0.1213773,82419.0,82418.0,0.0327]
[1743278076161,0.1213773,82419.0,82418.0,0.00076]
[1743278076162,0.1549973,82419.0,82418.0,0.00076]
[1743278076348,0.1865973,82419.0,82418.0,0.00076]
[1743278077863,0.1865973,82419.0,82418.0,0.1213788]
[1743278078062,0.1865973,82419.0,82418.0,0.1220988]
[1743278078870,0.1885973,82419.0,82418.0,0.1220988]
[1743278080475,0.1885973,82419.0,82418.0,0.00072]
[1743278081161,0.1885973,82419.0,82418.0,0.03372]
[1743278082172,0.1885973,82419.0,82418.0,0.033]
[1743278082469,0.1885973,82419.0,82418.0,0.00068]
[1743278082674,0.1213847,82415.0,82414.0,0.1213843]
[1743278082875,0.1220647,82415.0,82414.0,0.1221443]
[1743278083176,0.2192647,82415.0,82414.0,0.1551443]
[1743278084073,0.5800647,82415.0,82414.0,0.00076]
[1743278084273,0.5800647,82415.0,82411.0,0.12156964]
[1743278084274,0.1213876,82413.0,82412.0,0.1213847]
[1743278084573,0.1220276,82413.0,82412.0,0.1529847]
[1743278084868,0.1863276,82413.0,82412.0,0.1536647]
[1743278085074,0.1863276,82413.0,82412.0,0.2750509]
[1743278085375,0.1863276,82413.0,82412.0,0.3059509]
[1743278085765,0.1893276,82413.0,82412.0,0.3059509]
[1743278089073,0.1893276,82413.0,82412.0,0.2750509]
[1743278089864,0.1893276,82413.0,82412.0,0.3058509]
[1743278096478,0.03674,82413.0,82412.0,0.3058509]
[1743278096982,0.1581261,82413.0,82412.0,0.3058509]
[1743278098180,0.03674,82413.0,82412.0,0.3058509]
[1743278098380,0.0361,82413.0,82412.0,0.3058509]
[1743278099074,0.03678,82413.0,82412.0,0.3058509]
[1743278100379,0.00368,82413.0,82412.0,0.3058509]
[1743278100684,0.003,82413.0,82412.0,0.3058509]
[1743278102278,0.00368,82413.0,82412.0,0.3058509]
[1743278102479,0.003,82413.0,82412.0,0.3058509]
[1743278104983,0.003,82413.0,82412.0,0.3213366]
[1743278105184,0.0346,82413.0,82412.0,0.3213366]
[1743278105989,0.0346,82413.0,82412.0,0.3058509]
[1743278111293,0.03524,82413.0,82412.0,0.2750509]
[1743278111493,0.0654,82413.0,82412.0,0.2750509]
[1743278111694,0.06608,82413.0,82412.0,0.2750509]
[1743278114496,0.03528,82413.0,82412.0,0.2750509]
[1743278114687,0.0346,82413.0,82412.0,0.3083509]
[1743278117283,0.003,82413.0,82412.0,0.3083509]
[1743278117891,0.0361,82413.0,82412.0,0.3083509]
[1743278118085,0.03678,82413.0,82412.0,0.3083509]
[1743278119396,0.03678,82413.0,82412.0,0.6691509]
[1743278122095,0.03678,82413.0,82412.0,0.3389509]
[1743278124704,0.0341,82413.0,82412.0,0.3399509]
[1743278125499,0.15492766,82423.0,82422.0,0.1213729]
[1743278125690,0.15564766,82423.0,82422.0,0.4828529]
[1743278126291,0.15564766,82423.0,82422.0,0.5461529]
[1743278126804,0.15664766,82423.0,82422.0,0.5461529]
[1743278127597,0.15764766,82423.0,82422.0,0.5461529]
[1743278128502,0.15664766,82423.0,82422.0,0.5461529]
[1743278129001,0.00172,82423.0,82422.0,0.55837161]
[1743278129190,0.001,82423.0,82422.0,0.55837161]
[1743278129797,0.1223714,82423.0,82422.0,0.03218]
[1743278130000,0.1230914,82423.0,82422.0,0.1220529]
[1743278130192,0.1547914,82423.0,82422.0,0.1220529]
[1743278131504,0.16689941,82423.0,82422.0,0.1220529]
[1743278137200,0.16689941,82423.0,82422.0,0.1539529]
[1743278149118,0.16689941,82423.0,82422.0,0.00068]
[1743278149320,0.16689941,82423.0,82422.0,0.1213729]
[1743278149517,0.16689941,82423.0,82422.0,0.1220529]
[1743278151313,0.16689941,82423.0,82422.0,0.1526529]
[1743278152507,0.1230914,82423.0,82422.0,0.1526529]
[1743278154020,0.1556914,82423.0,82422.0,0.1526529]
[1743278156114,0.16809435,82423.0,82422.0,0.1526529]
[1743278158017,0.00172,82423.0,82422.0,0.1526529]
[1743278158326,0.00172,82423.0,82422.0,0.529021]
[1743278158623,0.001,82423.0,82422.0,0.5134529]
[1743278158822,0.001,82423.0,82422.0,0.52902367]
[1743278159818,0.001,82423.0,82422.0,0.54111031]
[1743278160524,0.0318,82430.0,82427.0,0.1213655]
[1743278160724,0.00086204,82428.0,82427.0,0.13761627]
[1743278161023,0.00018204,82428.0,82427.0,0.13761627]
[1743278161420,0.00018204,82428.0,82427.0,0.20041627]
[1743278161811,0.00018204,82428.0,82427.0,0.20036689]
[1743278169227,0.00018204,82428.0,82427.0,0.32148689]
[1743278170528,0.00018204,82428.0,82427.0,0.68228689]
[1743278173122,0.00018204,82428.0,82427.0,0.32148689]
[1743278173322,0.00018204,82428.0,82427.0,0.68228689]
[1743278173627,0.00018204,82428.0,82427.0,0.56116689]
[1743278173929,0.36098204,82428.0,82427.0,0.2736655]
[1743278174126,0.00090204,82428.0,82427.0,0.2736655]
[1743278174327,0.00018204,82428.0,82427.0,0.2736655]
[1743278174520,0.01187166,82432.0,82427.0,0.40750773]
[1743278174721,0.0322,82449.0,82448.0,0.1213346]
[1743278174921,0.0322,82449.0,82448.0,0.25866233]
[1743278175132,0.03288,82449.0,82448.0,0.25866233]
[1743278175833,0.03288,82449.0,82448.0,0.25863241]
[1743278177531,0.03388,82449.0,82448.0,0.25863241]
[1743278178237,0.0332,82449.0,82448.0,0.2431346]
[1743278185439,0.03392,82449.0,82448.0,0.2431346]
[1743278185930,0.0332,82449.0,82448.0,0.2431346]
[1743278187542,0.03388,82449.0,82448.0,0.2431346]
[1743278188240,0.0332,82449.0,82448.0,0.2431346]
[1743278188443,0.0332,82449.0,82448.0,0.2752346]
[1743278189141,0.0332,82449.0,82448.0,0.2431346]
[1743278190352,0.03396,82449.0,82448.0,0.2737346]
[1743278190949,0.0332,82449.0,82448.0,0.2737346]
[1743278192045,0.03388,82449.0,82448.0,0.2737346]
[1743278192544,0.03388,82449.0,82448.0,0.6677346]
[1743278194250,0.03388,82449.0,82448.0,0.3069346]
[1743278194555,0.03388,82449.0,82448.0,0.6677346]
[1743278195553,0.0332,82449.0,82448.0,0.6677346]
[1743278196046,0.03388,82449.0,82448.0,0.6677346]
[1743278196252,0.0332,82449.0,82448.0,0.6677346]
[1743278196448,0.0332,82449.0,82448.0,0.68327055]
[1743278197554,0.0332,82449.0,82448.0,0.32247055]
[1743278197850,0.03396,82449.0,82448.0,0.32247055]
[1743278198054,0.03396,82449.0,82448.0,0.68327055]
[1743278198251,0.0332,82449.0,82448.0,0.68327055]
[1743278199550,0.0332,82449.0,82448.0,0.28927055]
[1743278200845,0.1552531,82449.0,82448.0,0.00068]
[1743278201253,0.1552531,82449.0,82448.0,0.1220146]
[1743278205561,0.1552531,82449.0,82448.0,0.00068]
[1743278206065,0.0004,82452.0,82451.0,0.1213302]
[1743278206262,4e-08,82457.0,82456.0,0.1213228]
[1743278206561,0.1829795,82457.0,82456.0,0.4833228]
[1743278207163,0.1829795,82457.0,82456.0,0.56045745]
[1743278209859,0.00112005,82457.0,82456.0,0.56045745]
[1743278210064,4e-08,82457.0,82456.0,0.56045745]
[1743278213564,4e-08,82457.0,82456.0,0.8505633]
[1743278214259,4e-08,82457.0,82456.0,0.4897633]
[1743278214464,4e-08,82457.0,82456.0,0.8505633]
[1743278216663,4e-08,82457.0,82456.0,0.86625607]
[1743278217477,4e-08,82457.0,82456.0,0.86625473]
[1743278217773,4e-08,82457.0,82456.0,0.86626297]
[1743278217958,4e-08,82457.0,82456.0,0.57615712]
[1743278221071,4e-08,82457.0,82456.0,0.57619234]
[1743278221977,4e-08,82457.0,82456.0,0.69715234]
[1743278224870,4e-08,82457.0,82456.0,0.69717362]
[1743278227071,0.0004,82468.0,82467.0,0.1213067]
[1743278227273,0.0004,82468.0,82467.0,0.62002287]
[1743278227677,0.0004,82468.0,82467.0,0.68402287]
[1743278229582,0.03322092,82476.0,82475.0,0.1212949]
[1743278229776,0.03434093,82476.0,82475.0,0.49901107]
[1743278230079,0.03322092,82476.0,82475.0,0.51424262]
[1743278230274,0.03322092,82476.0,82475.0,0.53316631]
[1743278230480,0.03322092,82476.0,82475.0,0.59646631]
[1743278232586,0.03322092,82476.0,82475.0,0.5967981]
[1743278233085,0.03322092,82476.0,82475.0,0.62259309]
[1743278233686,0.03322092,82476.0,82475.0,0.5967981]
[1743278234172,0.03322092,82476.0,82475.0,0.58156655]
[1743278234585,0.03322092,82476.0,82475.0,0.67198655]
[1743278238490,0.03322092,82476.0,82475.0,0.67177966]
[1743278240483,0.03322092,82476.0,82475.0,0.31097966]
[1743278240687,0.03322092,82476.0,82475.0,0.67177966]
[1743278242579,0.03322092,82476.0,82475.0,0.67181597]
[1743278243086,0.03322092,82476.0,82475.0,0.55089597]
[1743278243395,0.03322092,82476.0,82475.0,0.67181597]
[1743278246092,0.03322092,82476.0,82475.0,1.03261597]
[1743278249300,0.00012092,82476.0,82475.0,1.03261597]
[1743278252389,2e-08,82476.0,82475.0,1.03261597]
[1743278252794,2e-08,82476.0,82475.0,1.47898321]
[1743278253391,2e-08,82476.0,82475.0,1.35806321]
[1743278253592,2e-08,82476.0,82475.0,1.47894321]
[1743278254102,2e-08,82476.0,82475.0,1.478897]
[1743278254702,1e-07,82484.0,82483.0,0.1212831]
[1743278254903,1e-07,82484.0,82483.0,0.49919427]
[1743278255399,1e-07,82484.0,82483.0,0.56429427]
[1743278258299,0.24705945,82499.0,82490.0,0.1212728]
[1743278258300,0.1638363,82491.0,82490.0,0.1212728]
[1743278258507,0.16503631,82491.0,82490.0,0.62002397]
[1743278258707,0.1638363,82491.0,82490.0,0.62002397]
[1743278259602,0.1638363,82491.0,82490.0,0.65092397]
[1743278259800,0.1638363,82491.0,82490.0,0.65492397]
[1743278261095,0.1638363,82491.0,82490.0,0.65792397]
[1743278261492,0.1638363,82491.0,82490.0,0.65492397]
[1743278261698,0.1638363,82491.0,82490.0,0.65792397]
[1743278261898,0.1638363,82491.0,82490.0,0.29712397]
[1743278262206,0.1649963,82491.0,82490.0,0.65792397]
[1743278262405,0.1649963,82491.0,82490.0,0.50614397]
[1743278262406,0.1638363,82491.0,82490.0,0.50614397]
[1743278262706,0.2851077,82491.0,82490.0,0.50614397]
[1743278262903,0.29621514,82491.0,82490.0,0.4902728]
[1743278263209,0.1649963,82491.0,82490.0,0.4902728]
[1743278263510,0.032,82493.0,82492.0,0.1212699]
[1743278263700,0.032,82493.0,82492.0,0.1227899]
[1743278264102,0.032,82493.0,82492.0,0.2436699]
[1743278264901,0.032,82493.0,82492.0,0.25323119]
[1743278265100,0.032,82493.0,82492.0,0.25523119]
[1743278265801,0.032,82493.0,82492.0,0.25823119]
[1743278268106,0.18185945,82520.0,82510.0,0.1212434]
[1743278268321,0.8806,82530.0,82510.0,0.2421234]
[1743278268322,0.36144,82511.0,82510.0,0.2421234]
[1743278268497,0.36144,82511.0,82510.0,0.2436034]
[1743278269008,0.00064,82511.0,82510.0,0.2436034]
[1743278271510,0.00064,82511.0,82510.0,0.2754034]
[1743278273208,0.00064,82511.0,82510.0,0.1545234]
[1743278273411,0.00064,82511.0,82510.0,0.2435634]
[1743278274217,0.03384,82511.0,82510.0,0.2435634]
[1743278275717,0.155082,82511.0,82510.0,0.2435634]
[1743278275917,0.155082,82511.0,82510.0,0.1227234]
[1743278276218,0.155082,82511.0,82510.0,0.2435634]
[1743278276602,0.155082,82511.0,82510.0,0.1227234]
[1743278276805,0.155082,82511.0,82510.0,0.2435634]
[1743278277314,0.121882,82511.0,82510.0,0.2727234]
[1743278277510,0.18185945,82531.0,82525.0,0.1212214]
[1743278277708,0.0631,82530.0,82525.0,0.2437014]
[1743278278109,0.0631,82530.0,82525.0,0.2756014]
[1743278279018,0.18185945,82527.0,82526.0,0.1818298]
[1743278279211,0.18185945,82527.0,82526.0,0.2161098]
[1743278281221,0.21861706,82532.0,82531.0,0.1212126]
[1743278281516,0.25441172,82546.0,82545.0,0.121192]
[1743278281717,0.25441172,82546.0,82545.0,0.243672]
[1743278283614,0.18117882,82547.0,82546.0,0.1211906]
[1743278283916,2e-08,82548.0,82547.0,0.1211891]
[1743278284218,2e-08,82548.0,82547.0,0.19752046]
[1743278284419,2e-08,82548.0,82547.0,0.22972046]
[1743278287318,0.10836652,82561.0,82547.0,0.66813136]
[1743278287519,0.26278816,82575.0,82574.0,0.1211495]
[1743278287820,0.20966966,82575.0,82574.0,0.9666695]
[1743278288011,0.17448446,82575.0,82574.0,0.9666695]
[1743278288620,0.23483841,82580.0,82579.0,0.1211421]
[1743278288815,0.0649,82595.0,82594.0,0.1211201]
[1743278289008,0.0649,82595.0,82594.0,0.1228001]
[1743278289213,0.300367,82603.0,82597.0,0.0605574]
[1743278289422,0.4092,82617.0,82609.0,0.1210981]
[1743278289423,0.3608,82610.0,82609.0,0.1210981]
[1743278289617,0.3608,82610.0,82609.0,0.2450181]
[1743278290021,0.0308,82611.0,82610.0,0.1210967]
[1743278290216,0.0308,82611.0,82610.0,0.1227767]
[1743278290525,0.0308,82611.0,82610.0,0.1544767]
[1743278290722,0.0004,82612.0,82611.0,0.1210952]
[1743278291024,0.0004,82612.0,82611.0,0.1227752]
[1743278291324,1e-07,82612.0,82611.0,0.1846752]
[1743278291717,0.0316,82626.0,82625.0,0.1210747]
[1743278291919,0.0316,82626.0,82625.0,0.2448347]
[1743278292117,0.033,82627.0,82626.0,0.1210732]
[1743278292321,0.033,82627.0,82626.0,0.1846132]
[1743278292723,0.0646,82627.0,82626.0,0.1846132]
[1743278292921,0.0646,82627.0,82626.0,0.3066532]
[1743278293327,0.0646,82627.0,82626.0,0.31679519]
[1743278294128,0.0646,82627.0,82626.0,0.1227132]
[1743278294334,0.0646,82627.0,82626.0,0.2453132]
[1743278295028,0.0646,82627.0,82626.0,0.1227132]
[1743278296232,0.4254,82627.0,82626.0,0.1227132]
[1743278296434,0.5464718,82627.0,82626.0,0.1227132]
[1743278298520,0.4254,82627.0,82626.0,0.1227132]
[1743278298827,0.0315,82633.0,82626.0,0.1227132]
[1743278298828,0.3608,82651.0,82643.0,0.1210483]
[1743278299132,0.0641,82650.0,82643.0,0.6071683]
[1743278299434,0.0605186,82651.0,82644.0,0.1210424]
[1743278299641,0.1210402,82649.0,82648.0,0.1210381]
[1743278299927,0.1210402,82649.0,82648.0,0.1226781]
[1743278302429,0.0605143,82657.0,82648.0,0.1831966]
[1743278302635,0.1210366,82651.0,82650.0,0.1210381]
[1743278302934,0.1210366,82651.0,82650.0,0.1226781]
[1743278303335,0.1210366,82651.0,82650.0,0.00164]
[1743278303536,0.1210469,82644.0,82639.0,0.41425303]
[1743278303731,0.1210469,82644.0,82643.0,0.00168]
[1743278304432,0.1210469,82644.0,82643.0,0.2437732]
[1743278305028,0.1210469,82648.0,82647.0,0.0605206]
[1743278305226,0.1815688,82648.0,82647.0,0.00164]
[1743278305848,0.3608,82652.0,82651.0,0.1210366]
[1743278306133,0.1210395,82649.0,82648.0,0.0322]
[1743278306336,0.05349075,82651.0,82648.0,0.03388]
[1743278307031,0.1210395,82649.0,82648.0,0.03388]
[1743278307429,0.1860395,82649.0,82648.0,0.03388]
[1743278309136,0.1210395,82649.0,82648.0,0.00168]
[1743278309433,0.1210395,82649.0,82648.0,0.121041]
[1743278309735,0.1859395,82649.0,82648.0,0.00164]
[1743278310630,0.1859395,82649.0,82648.0,0.122681]
[1743278310836,0.00431263,82649.0,82648.0,0.122681]
[1743278311036,0.00431263,82649.0,82648.0,0.155281]
[1743278311635,0.3608,82653.0,82648.0,0.155281]
[1743278311636,0.3608,82661.0,82648.0,0.03424]
[1743278311830,0.0323,82675.0,82674.0,0.1210029]
[1743278312032,0.0323,82675.0,82674.0,0.4834429]
[1743278312342,0.1533015,82675.0,82674.0,0.4834429]
[1743278312748,0.0243,82675.0,82674.0,0.4834429]
[1743278314437,1e-07,82676.0,82675.0,0.1210015]
[1743278314645,1e-07,82676.0,82675.0,0.5161415]
[1743278314841,1e-07,82676.0,82675.0,0.5479415]
[1743278317136,1e-07,82676.0,82675.0,0.56325054]
[1743278317832,1e-07,82676.0,82675.0,0.5782858]
[1743278318032,1e-07,82676.0,82675.0,0.72828369]
[1743278318243,1e-07,82676.0,82675.0,1.23828369]
[1743278318639,1e-07,82676.0,82675.0,1.22324843]
[1743278318840,0.0004,82692.0,82675.0,1.22324843]
[1743278318841,0.0004,82692.0,82691.0,0.1209781]
[1743278319038,0.0004,82708.0,82699.0,0.1209663]
[1743278319235,0.1209592,82704.0,82699.0,0.49842585]
[1743278319643,0.1209585,82705.0,82699.0,0.51384334]
[1743278319836,0.0604774,82707.0,82699.0,0.51384334]
[1743278320040,0.1209604,82704.0,82699.0,0.51384178]
[1743278320238,0.092,82700.0,82699.0,0.51384178]
[1743278320747,0.4528,82700.0,82699.0,0.15304178]
[1743278320940,0.092,82700.0,82699.0,0.15304178]
[1743278321249,0.01022353,82707.0,82706.0,0.1209561]
[1743278321547,0.01022353,82707.0,82706.0,0.13765565]
[1743278322440,0.13117813,82707.0,82706.0,0.01669955]
[1743278322748,0.01022353,82707.0,82706.0,0.13765565]
[1743278322948,0.01022353,82707.0,82706.0,0.13761565]
[1743278323248,0.13117813,82707.0,82706.0,0.13761565]
[1743278323449,0.13117813,82707.0,82706.0,0.17001565]
[1743278324043,0.13117813,82707.0,82706.0,0.1549961]
[1743278324450,0.16247813,82707.0,82706.0,0.1549961]
[1743278324847,0.04152353,82707.0,82706.0,0.1549961]
[1743278325046,0.0313,82707.0,82706.0,0.1863961]
[1743278325650,0.0313,82707.0,82706.0,0.20139551]
[1743278326553,0.1522546,82707.0,82706.0,0.20139551]
[1743278326747,0.0313,82707.0,82706.0,0.20139551]
[1743278327545,0.1522546,82707.0,82706.0,0.20139551]
[1743278327750,0.1628546,82707.0,82706.0,0.20139551]
[1743278328451,0.1628546,82707.0,82706.0,0.08043941]
[1743278329045,0.1628546,82707.0,82706.0,0.06544]
[1743278330145,0.1628546,82707.0,82706.0,0.00164]
[1743278331745,0.1628546,82707.0,82703.0,0.21439402]
[1743278331746,0.120959,82704.0,82703.0,0.21439402]
[1743278331945,0.121599,82704.0,82703.0,0.21555402]
[1743278334249,0.121599,82704.0,82703.0,0.00116]
[1743278334559,0.1209707,82696.0,82695.0,0.0323]
[1743278334747,0.4829307,82696.0,82695.0,0.1877322]
[1743278334946,0.4829307,82696.0,82695.0,0.06676]
[1743278335257,0.4829307,82696.0,82695.0,0.1877322]
[1743278335555,0.5267307,82696.0,82695.0,0.1877322]
[1743278335755,0.5267307,82696.0,82695.0,0.06676]
[1743278337552,0.5267307,82696.0,82695.0,0.1877322]
[1743278337759,0.5267307,82696.0,82695.0,0.06676]
[1743278337953,0.5267307,82696.0,82695.0,0.03346]
[1743278338459,0.27259632,82696.0,82695.0,0.03346]
[1743278338661,0.39356702,82696.0,82695.0,0.03346]
[1743278340261,0.39356702,82696.0,82686.0,0.2858587]
[1743278340262,0.0604899,82690.0,82686.0,0.2858587]
[1743278340445,0.4817839,82687.0,82686.0,0.2866587]
[1743278340648,0.4826239,82687.0,82686.0,0.2866587]
[1743278340844,0.6326239,82687.0,82686.0,0.2866587]
[1743278341054,0.92084,82687.0,82662.0,0.50507854]
[1743278341253,0.121019,82663.0,82662.0,0.50507854]
[1743278341452,0.0008,82663.0,82662.0,0.62677904]
[1743278341857,0.0008,82663.0,82662.0,0.69027904]
[1743278342162,0.121819,82663.0,82662.0,0.69027904]
[1743278344053,0.121819,82663.0,82662.0,0.1852005]
[1743278345559,0.00017991,82671.0,82670.0,0.1210088]
[1743278345765,0.00097991,82671.0,82670.0,0.4826088]
[1743278345963,0.00017991,82671.0,82670.0,0.4826088]
[1743278346568,0.00105991,82671.0,82670.0,0.4826088]
[1743278347764,0.00017991,82671.0,82670.0,0.4826088]
[1743278349264,0.00017991,82671.0,82670.0,0.5145088]
[1743278351770,0.12118721,82671.0,82670.0,0.5145088]
[1743278353462,0.00093991,82671.0,82670.0,0.5145088]
[1743278353669,0.00017991,82671.0,82670.0,0.5145088]
[1743278354275,0.00081991,82671.0,82670.0,0.5145088]
[1743278354769,0.00017991,82671.0,82670.0,0.5145088]
[1743278354961,0.00097991,82671.0,82670.0,0.5145088]
[1743278355569,0.00017991,82671.0,82670.0,0.5145088]
[1743278355871,0.12118721,82671.0,82670.0,0.1218088]
[1743278356064,0.12198721,82671.0,82670.0,0.1531088]
[1743278357673,0.12198721,82671.0,82670.0,0.0321]
[1743278357862,0.12198721,82671.0,82670.0,0.0313]
[1743278358385,0.1210088,82670.0,82669.0,0.0302]
[1743278358570,0.1845488,82670.0,82669.0,0.0302]
[1743278359572,0.1210234,82660.0,82659.0,0.3608]
[1743278359769,0.1216634,82660.0,82659.0,0.3616]
[1743278360275,0.1216634,82660.0,82659.0,0.0008]
[1743278360575,0.1845634,82660.0,82659.0,0.0008]
[1743278361568,0.1845634,82660.0,82659.0,0.1218249]
[1743278361870,0.1845634,82660.0,82659.0,0.0008]
[1743278362070,0.1815431,82658.0,82657.0,0.1210274]
[1743278362270,0.1210293,82656.0,82655.0,0.0633]
[1743278362469,0.1216693,82656.0,82655.0,0.0633]
[1743278362873,0.1528693,82656.0,82655.0,0.0633]
[1743278363077,0.1528693,82656.0,82655.0,0.0641]
[1743278364271,0.1528693,82656.0,82655.0,0.0317]
[1743278364676,0.1528693,82656.0,82655.0,0.0637]
[1743278365575,0.1528693,82656.0,82655.0,0.1847307]
[1743278365976,0.1528693,82656.0,82655.0,0.0637]
[1743278366176,0.1528693,82656.0,82655.0,0.0629]
[1743278366574,0.00064,82656.0,82655.0,0.0637]
[1743278366779,0.05840544,82660.0,82659.0,0.1210249]
[1743278366974,0.09491238,82664.0,82663.0,0.121019]
[1743278367276,0.09619238,82664.0,82663.0,0.611899]
[1743278367579,0.00128,82664.0,82663.0,0.611899]
[1743278367783,0.18101548,82665.0,82664.0,0.1210176]
[1743278367982,0.18233548,82665.0,82664.0,0.1210176]
[1743278368182,0.18233548,82665.0,82664.0,0.1223376]
[1743278370083,0.18233548,82665.0,82664.0,0.1844376]
[1743278370971,0.18233548,82665.0,82664.0,0.9060376]
[1743278372883,0.00132,82665.0,82664.0,0.9060376]
[1743278373081,0.00017991,82671.0,82670.0,0.1210088]
[1743278373389,0.00017991,82671.0,82670.0,0.1222888]
[1743278374078,0.00017991,82671.0,82670.0,0.1862888]
[1743278374776,0.00017991,82671.0,82670.0,0.19516157]
[1743278375877,1e-08,82671.0,82670.0,0.19516157]
[1743278377785,1e-08,82671.0,82670.0,0.91676157]
[1743278379788,1e-08,82671.0,82670.0,0.19516157]
[1743278380083,1e-08,82671.0,82670.0,0.91676157]
[1743278380790,1e-08,82671.0,82670.0,1.39676157]
[1743278380983,0.3608,82713.0,82702.0,0.120962]
[1743278380984,0.18101548,82703.0,82702.0,0.120962]
[1743278381285,0.18229548,82703.0,82702.0,0.122242]
[1743278381484,0.30325598,82703.0,82702.0,0.122242]
[1743278381785,0.18229548,82703.0,82702.0,0.122242]
[1743278382587,0.24429548,82703.0,82702.0,0.122242]
[1743278383383,0.06328,82703.0,82702.0,0.122242]
[1743278385786,0.062,82703.0,82702.0,0.122242]
[1743278385992,0.06328,82703.0,82702.0,0.122242]
[1743278386779,0.06328,82703.0,82702.0,0.184742]
[1743278387697,0.062,82703.0,82702.0,0.184742]
[1743278387891,0.06264,82703.0,82702.0,0.184742]
[1743278388197,0.06272,82703.0,82702.0,0.184742]
[1743278388393,0.062,82703.0,82702.0,0.184742]
[1743278388882,0.06328,82703.0,82702.0,0.184742]
[1743278389789,0.062,82703.0,82702.0,0.184742]
[1743278392883,0.062,82703.0,82702.0,0.545542]
[1743278394697,0.3608,82764.0,82704.0,0.6047946]
[1743278394895,0.16477897,82736.0,82735.0,0.4817137]
[1743278395096,0.16613897,82736.0,82735.0,0.6100737]
[1743278395399,0.16477897,82736.0,82735.0,0.6100737]
[1743278395906,0.16477897,82736.0,82735.0,0.6752737]
[1743278396095,0.16477897,82736.0,82735.0,0.6751537]
[1743278396393,0.16477897,82736.0,82735.0,0.5482737]
[1743278396600,0.0604502,82745.0,82739.0,0.1209079]
[1743278396798,0.25166673,82746.0,82739.0,0.4829879]
[1743278396799,0.00172,82740.0,82739.0,0.4829879]
[1743278397102,0.17644442,82746.0,82745.0,0.1208991]
[1743278397300,0.17644442,82746.0,82745.0,0.6106591]
[1743278397995,0.17644442,82746.0,82745.0,0.6746591]
[1743278398389,0.09484527,82752.0,82751.0,0.1208903]
[1743278398590,0.0317,82787.0,82761.0,0.1208757]
[1743278398795,0.0317,82787.0,82761.0,0.9707957]
[1743278399004,0.0317,82787.0,82761.0,1.1207957]
[1743278399199,0.27645621,82762.0,82761.0,1.1207957]
[1743278399401,0.15627851,82762.0,82761.0,1.1207957]
[1743278399588,0.06059421,82762.0,82761.0,1.1207957]
[1743278399897,0.063,82786.0,82785.0,0.1208407]
[1743278400094,0.063,82786.0,82785.0,0.8441207]
[1743278401409,0.2166392,82786.0,82785.0,0.00168]
[1743278401596,0.1208465,82781.0,82780.0,0.3109]
[1743278401791,0.1214865,82781.0,82780.0,0.432948]
[1743278402291,0.1214865,82781.0,82780.0,0.3121]
[1743278402598,0.1214865,82781.0,82780.0,0.0012]
[1743278402807,0.1813039,82767.0,82766.0,0.1208642]
[1743278402993,0.061314,82767.0,82766.0,0.00092]
[1743278403310,0.1208699,82765.0,82764.0,0.4816713]
[1743278403501,0.1215499,82765.0,82764.0,0.4823513]
[1743278403803,0.13104116,82765.0,82764.0,0.4823513]
[1743278404000,0.13036116,82765.0,82764.0,0.36148]
[1743278404202,0.13104116,82765.0,82764.0,0.36148]
[1743278404602,0.13104116,82765.0,82764.0,0.4823513]
[1743278404904,0.13036116,82765.0,82764.0,0.4823513]
[1743278405105,0.13108116,82765.0,82764.0,0.4823513]
[1743278405300,0.13108116,82765.0,82764.0,0.36148]
[1743278405699,0.13108116,82765.0,82764.0,0.00068]
[1743278405906,0.16158116,82765.0,82764.0,0.00068]
[1743278406106,0.17253006,82765.0,82764.0,0.00068]
[1743278406306,0.20283006,82765.0,82764.0,0.00068]
[1743278406511,0.1208816,82757.0,82756.0,0.00018124]
[1743278406815,0.1208889,82752.0,82751.0,0.1208899]
[1743278407002,0.1208918,82750.0,82749.0,0.1208924]
[1743278407206,0.13146306,82750.0,82749.0,0.1215324]
[1743278407707,0.16366306,82750.0,82749.0,0.1215324]
[1743278407903,0.16366306,82750.0,82749.0,0.00064]
[1743278408707,0.1208962,82747.0,82746.0,0.4788201]
[1743278408906,0.13166746,82747.0,82746.0,0.3585634]
[1743278409503,0.14084704,82747.0,82746.0,0.479461]
[1743278410399,0.17384704,82747.0,82746.0,0.479461]
[1743278411619,0.17384704,82747.0,82746.0,0.00064]
[1743278411827,0.1209035,82742.0,82741.0,0.00018124]
[1743278412024,0.25875476,82742.0,82741.0,0.00086124]
[1743278412531,0.26986346,82742.0,82741.0,0.00086124]
[1743278413121,0.1209093,82738.0,82731.0,0.00048349]
[1743278413319,0.1209181,82732.0,82731.0,0.00048349]
[1743278413625,0.0604654,82724.0,82722.0,0.1209327]
[1743278413825,0.00974619,82723.0,82722.0,0.1209327]
[1743278414135,0.1209327,82722.0,82721.0,0.28478636]
[1743278414332,0.13235889,82722.0,82721.0,0.28478636]